{"text_format":"1","workbook":"xlsx","n_sheets":2,"sheets":["Лист2","Лист1"],"not_rendered":{"charts":0,"images":0,"macros":1,"external_links":5,"defined_names":6,"comments":0,"pivot_tables":0},"unopened":[],"bounds":{"document_bytes":16777216,"sheet_cells":100000,"rows_first":2000,"rows_last":500,"rows_between":2000,"halvings":0,"cell_chars":16384,"cell_head_chars":4096},"cells_cut":0,"cells_raw":0,"read":"whole","date_system":"1900"}

{"sheet":"Лист2","index":0,"n_rows":6,"n_cols":77,"rows_kept":6,"cut":false,"hidden":false,"merged":[[2,63,3,63],[2,70,3,71],[2,53,3,53],[2,46,3,46],[2,47,3,47],[2,48,3,48],[2,49,3,49],[2,50,3,50],[2,51,3,51],[2,52,3,52],[2,68,3,68],[2,54,3,54],[2,55,3,55],[2,56,3,56],[2,67,3,67],[2,64,3,64],[2,65,3,65],[2,1,3,1],[2,0,3,0],[2,12,3,12],[2,7,3,7],[2,11,3,11],[2,8,3,8],[2,10,3,10],[2,2,3,2],[2,3,3,3],[2,4,3,4],[2,6,3,6],[2,5,3,5],[2,9,3,9],[2,15,3,15],[2,14,3,14],[2,13,3,13],[2,21,3,21],[2,17,3,17],[2,19,3,19],[2,20,3,20],[2,18,3,18],[2,16,3,16],[2,22,3,22],[2,23,3,23],[2,26,3,26],[2,42,3,42],[2,43,3,43],[2,27,3,27],[2,31,3,31],[2,24,3,24],[2,25,3,25],[2,40,3,40],[2,28,3,28],[2,35,3,35],[2,36,3,36],[2,38,3,38],[2,39,3,39],[2,66,3,66],[2,45,3,45],[2,29,3,29],[2,30,3,30],[2,32,3,32],[2,33,3,33],[2,34,3,34],[2,37,3,37],[2,44,3,44],[2,41,3,41],[2,57,3,57],[2,58,3,58],[2,59,3,59],[2,60,3,60],[2,61,3,61],[2,62,3,62]]}
["📆",{"$f":"TODAY()","v":"2023-10-08"}]
[]
["Идентификатор заказа","Дата получения запроса от менеджера КО на изготовление чертежа, эскиза, образца","Дублер","Комплектация","Кол-во","Ст-ть матрицы для клиента, руб","Ст-ть матрицы от производителя, руб","Нормативная документация","Длина ОТ, м","Длина ДО, м","Среднемес.объем заказа (т) в месяц","Вид покрытия","Марка сплава","Состояние поставки","Назначение профиля","Заказчик","Шифр","Теор.вес п/м, кг","Усилие пресса","Диаметр втулки конт-ра, мм","Габаритные размеры инстр-та, мм","Категория сложности матрицы","Необходимость болстера/вставки","Кол-во каналов","Статус чертежа профиля, согласованного с Мещеряковым","Заполняется при отказе","Примечание","Стойкость (ресурс), тн","Изготовитель","Охлаждение азотом","Запуск короткими слитками","Только дневная матрица","Оставлять с металлом","Смазать","Греть УШ","Ограничение скорости, мм/сек","Контроль технолога","№ пресса","Разбирать станком","Вынуть металл из матрицы","Статус чертежа профиля, согласованного со Стародубцевым","Заполняется при отказе","Примечание","С-ть пресс-я по прессштемпелю, мм/сек","MAX длина заготовки, мм","MAX давление, бар","t заг-ки, град","t инстр-та, град","t конт-ра втулки, град","Выход годного,%","Длина прессост, мм","Тех.отходы, м","План.КВГ,%","Категория сложности профиля","Статус чертежа профиля","Заполняется при отказе","Примечание","Статус","Статус чертежа матрицы, согласованного с Мещеряковым","Заполняется при отказе","Примечание","Статус чертежа матрицы, согласованного со Стародубцевым","Заполняется при отказе","Примечание","Статус чертежа матрицы","Заполняется при отказе","Примечание","Менеджер","Статус","Пункт регламента №3","Пункт регламента №3"]
[]
["Менеджер по зак.матр.инстр-та","Менеджер по зак.матр.инстр-та","Менеджер по зак.матр.инстр-та","Менеджер по зак.матр.инстр-та","Менеджер по зак.матр.инстр-та","Нач-к констр.отдела","Менеджер по зак.матр.инстр-та","Менеджер комм.отдела","Менеджер комм.отдела","Менеджер комм.отдела","Менеджер комм.отдела","Менеджер комм.отдела","Менеджер комм.отдела","Менеджер комм.отдела","Менеджер комм.отдела","Менеджер комм.отдела","Нач-к констр.отдела","Нач-к констр.отдела","Нач-к констр.отдела","Нач-к констр.отдела","Нач-к констр.отдела","Нач-к констр.отдела","Нач-к констр.отдела","Нач-к констр.отдела","Нач-к констр.отдела","Нач-к констр.отдела","Нач-к констр.отдела","Нач-к участка корр-ки","Нач-к участка корр-ки","Нач-к участка корр-ки","Нач-к участка корр-ки","Нач-к участка корр-ки","Нач-к участка корр-ки","Нач-к участка корр-ки","Нач-к участка корр-ки","Нач-к участка корр-ки","Нач-к участка корр-ки","Нач-к участка корр-ки","Нач-к участка корр-ки","Нач-к участка корр-ки","Нач-к участка корр-ки","Нач-к участка корр-ки","Нач-к участка корр-ки","Технолог цеха №2","Технолог цеха №2","Технолог цеха №2","Технолог цеха №2","Технолог цеха №2","Технолог цеха №2","Технолог цеха №2","Технолог цеха №2","Технолог цеха №2","Технолог цеха №2","Технолог цеха №2","Технолог цеха №2","Технолог цеха №2","Технолог цеха №2",null,"Нач-к констр.отдела","Нач-к констр.отдела","Нач-к констр.отдела","Нач-к участка корр-ки","Нач-к участка корр-ки","Нач-к участка корр-ки","Технолог цеха №2","Технолог цеха №2","Технолог цеха №2",null,null,"Технолог цеха №2","Ссылка на папку со всеми документами","Осталось дней до окончания срока"]
[{"$f":"[1]Реестр!$A426","v":"00.01.00-"},{"$f":"[1]Реестр!$B426","v":"00:00:00"},{"$f":"[1]Реестр!$V426","v":0},{"$f":"[1]Реестр!$AB426","v":0},{"$f":"[1]Реестр!$G426","v":0},{"$f":"[2]Лист2!$AF426","v":230000},{"$f":"[1]Реестр!$J426","v":0},{"$f":"[1]Реестр!$X426","v":0},{"$f":"[1]Реестр!$Q426","v":0},{"$f":"[1]Реестр!$R426","v":0},{"$f":"[1]Реестр!$S426","v":0},{"$f":"[1]Реестр!$T426","v":0},{"$f":"[1]Реестр!$U426","v":0},{"$f":"[1]Реестр!$V426","v":0},{"$f":"[1]Реестр!$W426","v":0},{"$f":"[1]Реестр!$Y426","v":0},{"$f":"[3]Лист2!$X426","v":"1025-16"},{"$f":"[3]Лист2!$AA426","v":1.4159999999999999},{"$f":"[3]Лист2!$AB426","v":1500},{"$f":"[3]Лист2!$AC426","v":160},{"$f":"[3]Лист2!$AD426","v":"230х140"},{"$f":"[3]Лист2!$AE426","v":"C"},{"$f":"[3]Лист2!$Y426","v":"Да"},{"$f":"[3]Лист2!$Z426","v":1},{"$f":"[2]Лист2!$AH426","v":"Согласовано Мещеряковым"},{"$f":"[2]Лист2!$AI426","v":0},{"$f":"[3]Лист2!$AJ426","v":0},{"$f":"[4]Лист2!$AE426","v":0},{"$f":"[4]Лист2!$AF426","v":0},{"$f":"[4]Лист2!$AG426","v":0},{"$f":"[4]Лист2!$AH426","v":0},{"$f":"[4]Лист2!$AI426","v":0},{"$f":"[4]Лист2!$AJ426","v":0},{"$f":"[4]Лист2!$AK426","v":0},{"$f":"[4]Лист2!$AL426","v":0},{"$f":"[4]Лист2!$AM426","v":0},{"$f":"[4]Лист2!$AN426","v":0},{"$f":"[5]Лист2!$AO426","v":0},{"$f":"[5]Лист2!$AP426","v":0},{"$f":"[5]Лист2!$AQ426","v":0},{"$f":"[5]Лист2!$AR426","v":0},{"$f":"[5]Лист2!$AS426","v":0},{"$f":"[5]Лист2!$AT426","v":0},1,1,1,1,1,420,null,1,1,1,1,"Согласовано Рекуц",null,null,{"$f":"IF(COUNTA(AR6:AW6,AY6:BC6)=0,\"все пусто\",IF(COUNTA(AR6:AW6,AY6:BC6)=11,\"все заполнено\",\"что-то заполнено\"))","v":"все заполнено"},{"$f":"[2]Лист2!$AS426","v":"Согласовано Мещеряковым"},{"$f":"[2]Лист2!$AT426","v":0},{"$f":"[2]Лист2!$AU426","v":0},{"$f":"[5]Лист2!$BB426","v":0},{"$f":"[5]Лист2!$BC426","v":0},{"$f":"[5]Лист2!$BD426","v":0},"Отказано Рекуц",null,"не подходит коэффициент вытяжки",{"$f":"[1]Реестр!$AG426","v":0},{"$f":"IF(COUNTA(BG6:BM6)=0,\"все пусто\",IF(COUNTA(BG6:BM6)=7,\"все заполнено\",\"что-то заполнено\"))","v":"все заполнено"},{"$f":"[2]Лист2!$AX426+1","v":"2023-10-09"},{"$f":"HYPERLINK(BU6,\"Документы\")","v":"Документы"},{"$f":"IF(ISBLANK(Лист2!$BR6),\"\",IF(Лист2!$BR6<=TODAY(),\"0\",CONCATENATE(\"\",Лист2!$BR6-TODAY())))","v":"1"},{"$f":"[1]Реестр!$FF426","v":0},{"$f":"[1]Реестр!$AH426","v":0},{"$f":"[1]Реестр!$V426","v":0},{"$f":"[2]Лист2!$X426","v":"1025-16"},"2023-10-08T00:03:22"]

{"sheet":"Лист1","index":1,"n_rows":23,"n_cols":15,"rows_kept":23,"cut":false,"hidden":true,"merged":[]}
["Дублер","Диаметр матрицы","Сложность (А,B,C,D)","Усилие пресса","Комплектация","Валюта","Изготовитель","Менеджер","Заказчик","Галки","Сплав","Состояние поставки","Вид покрытия","Статус чертежа","При отказе"]
["Да",200,"A",1000,"Кольцо","Руб","ATS","Акафьева","Анод завод","ü","6005А","Т1","анод","Согласовано Рекуц","Внесены изменения"]
["Нет",450,"B",1500,"Конус","€","AKS","Верхомий","Доксал","û","6060А","Т6","анод с дробью","Отказано Рекуц","Невозможно изготовить"]
[null,"230*200","C",4000,"Комплект",null,"IM","Голубев","ИПЛАНА",null,6060,"Т66","анод б/дроби"]
[null,180,"D",null,"Матрица+рассекатель",null,"FRX","Калинина","Авангард",null,"6061 (АД33)",null,"анод защит."]
[null,330,"S",null,"Матрица",null,"LBB","Маслова","ВЭЛКО",null,"6063Кр",null,"н/о"]
[null,"278*125","нет",null,"Прессшайба пресс 3",null,"ПрИн","Мельников","А-ЛЕД-ПРО",null,6063,null,"н/о п/анод"]
[null,"380*260",null,null,"Предкамера",null,null,"Фролова","ИП Бакушкин ",null,"6082 (АД35)",null,"н/о+анод"]
[null,"240*95",null,null,"Прессшайба пресс 4",null,null,"Халдина","Мастер",null,"АД0",null,"окраш"]
[null,380,null,null,"Прессштемпель",null,null,"Четверткова","Алтек",null,"АД35",null,"окраш+анод"]
[null,228,null,null,"Прессшайба пресс 2",null,null,"Шабалина","ГАЛВИНГ"]
[null,"330*130",null,null,"Прессшайба пресс 1",null,null,"Шишкин","Версаль"]
[null,"380*130",null,null,"Подкладка",null,null,null,"Митпроф"]
[null,280,null,null,"Рассекатель",null,null,null,"Наяда"]
[null,null,null,null,"Упорная шайба",null,null,null,"НОВАЯ КОНСТРУКЦИЯ"]
[null,null,null,null,null,null,null,null,"ООО «ГУ Центр»"]
[null,null,null,null,null,null,null,null,"Промед/Логос"]
[null,null,null,null,null,null,null,null,"Проммет"]
[null,null,null,null,null,null,null,null,"РУЗХИММАШ"]
[null,null,null,null,null,null,null,null,"ТБМ"]
[null,null,null,null,null,null,null,null,"Тонар"]
[null,null,null,null,null,null,null,null,"Флагман"]
[null,null,null,null,null,null,null,null,"ХИЛТИ"]